Cogmind - Beta 13 @@@ ROGUE MODE // 2024.04.02 @ 19:48:23 Player: Rizzen Result: Destroyed by G-34 Mercenary with Small Laser Performance ------------- Evolutions (1) 500 Regions Visited (2) 400 Robots Destroyed (36) 180 Value Destroyed (690) 690 Prototype IDs (0) 0 Alien Tech Used (0) 0 Bonus (0) 0 TOTAL SCORE: 1770 Bonus ------- None Cogmind --------- Core Integrity 0/400 Matter 237/300 Energy 99/100 System Corruption 0% Temperature Cool (6) Movement Flying (40) Location -9/Materials Parts ------- > --- POWER (2) -------- (None) > --- PROPULSION (2) --- Flight Unit > --- UTILITY (3) ------ (None) > --- WEAPON (2) ------- Backup Laser I > --- INVENTORY (5) ---- (None) Peak State ------------ > --- POWER ------------ Ion Engine > --- PROPULSION ------- Hover Unit Hover Unit > --- UTILITY ---------- ECM Suite Authchip [R/Combat] > --- WEAPON ----------- Light Cannon Grenade Launcher > --- INVENTORY -------- Ion Engine Signal Interpreter Beam Cannon Beam Cannon [Rating: 10] Favorites ----------- Power Ion Engine Engine Ion Engine Propulsion Hover Unit Leg Aluminum Leg Wheel Wheel Hover Unit Hover Unit Flight Unit Flight Unit Utility ECM Suite Device ECM Suite Storage Medium Matter Pod Processor Signal Interpreter Hackware Authchip [R/Combat] Protection Light Armor Plating Weapon Grenade Launcher Energy Gun EM Pulse Gun Energy Cannon Beam Cannon Ballistic Gun Light Assault Rifle Ballistic Cannon Light Cannon Launcher Grenade Launcher Special Weapon Mining Laser Special Melee Weapon Datajack Build | -11 -10 -9 ------- Run | Yrd Mat Mat Slots Evolved 2 | . . 2 Power 1 | . . 1 Propulsion . | . . . Utility 1 | . . 1 Weapon . | . . . Parts Attached 47 | 15 28 4 Power 4 | 1 3 . Engine 4 | 1 3 . Core . | . . . Reactor . | . . . Propulsion 10 | 4 3 3 Treads . | . . . Leg 2 | 2 . . Wheel 3 | 2 . 1 Hover 2 | . 2 . Flight 3 | . 1 2 Utility 13 | 3 9 1 Device 5 | 2 3 . Storage 1 | 1 . . Processor 2 | . 1 1 Hackware 2 | . 2 . Protection 3 | . 3 . Artifact . | . . . Weapon 20 | 7 13 . Energy Gun 4 | 4 . . Energy Cannon 2 | . 2 . Ballistic Gun 3 | 2 1 . Ballistic Cannon 2 | . 2 . Launcher 6 | . 6 . Special Weapon 1 | 1 . . Impact Weapon . | . . . Slashing Weapon . | . . . Piercing Weapon . | . . . Special Melee Weapon 2 | . 2 . Unidentified Prototypes . | . . . Parts Lost 10 | . 2 8 Power 3 | . . 3 Propulsion 4 | . 1 3 Utility 3 | . 1 2 Weapon . | . . . Highest Loss Streak 5 | . 1 5 To Critical Strikes . | . . . Average Slot Usage (%) 88 | . 94 40 Engine 12 | . 14 4 Wheel 2 | . 3 1 Hover 16 | . 17 5 Flight 4 | . 4 3 Device 9 | . 9 3 Processor 5 | . 6 3 Hackware 5 | . 5 3 Protection 5 | . 6 1 Energy Gun 1 | . . 5 Energy Cannon 6 | . 6 . Ballistic Gun 4 | . 4 . Ballistic Cannon 4 | . 4 3 Launcher 8 | . 8 3 Naked Turns 56 | . . 56 Heaviest Build 16 | 10 16 13 Greatest Support 20 | 20 20 10 Greatest Overweight (x) 2 | . 2 2 Average Overweight (x) . | . . . Largest Inventory Capacity 5 | 5 5 5 Average Capacity 5 | 5 5 5 Most Carried 5 | 5 5 1 Average Carried 2 | 3 2 . Final Capacity 5 | 5 5 5 Final Carried 2 | 2 1 . Class Distribution -------------------- 73% | Mutant 26% | Scavenger-Mutant Dominant Class ---------------- Mutant | -10/Materials Mutant | -9/Materials Resources | -11 -10 -9 ----------- Run | Yrd Mat Mat Matter Collected 1124 | 440 672 12 Remotely . | . . . Salvage Created 952 | 132 725 95 Parts 62 | 10 45 7 Haulers Intercepted 2 | . 2 . Recyclers Shooed 1 | . 1 . Parts Field Recycled . | . . . Retrieved Matter . | . . . Parts Self-Destructed . | . . . Prevented . | . . . Kills | -11 -10 -9 ------- Run | Yrd Mat Mat Combat Hostiles Destroyed 19 | 1 13 5 Guns 7 | 1 1 5 Cannons 5 | . 5 . AOE 6 | . 6 . Classes Destroyed 9 | 3 4 2 Worker 4 | 1 3 . Builder 3 | . 3 . Tunneler 2 | 2 . . Hauler 2 | . 2 . Recycler 4 | . 4 . Operator 2 | . 2 . Swarmer 3 | . . 3 Grunt 15 | 1 13 1 Duelist 1 | . . 1 Best Kill Streak 5 | 2 5 4 Combat Bots Only 4 | 1 3 4 Max Kills in Single Turn 3 | 1 3 2 Gunslinging 1 | . . 1 Exploded 2 | . 2 . Melee . | . . . Uniques/NPCs Destroyed . | . . . Combat | -11 -10 -9 -------- Run | Yrd Mat Mat Hostile Shots Fired 151 | 1 53 97 Missed 47 | 1 21 25 Damage Taken 1197 | . 392 805 Core 467 | . 67 400 Absorbed by Shields . | . . . Core Remaining (%) 86 | 100 73 . Volleys Fired 117 | 17 77 23 Largest 2 | 2 2 2 Hottest 120 | 100 120 65 Shots Fired 192 | 30 122 40 Gun 112 | 26 56 30 Cannon 47 | . 42 5 Launcher 29 | . 24 5 Special 4 | 4 . . Kinetic 63 | . 58 5 Thermal 56 | 4 22 30 Explosive 29 | . 24 5 Electromagnetic 44 | 26 18 . Robot Hit Streak 8 | 5 8 3 Robot Miss Streak 4 | 2 4 3 Penetration Max . | . . . Secondary Targets 4 | . . 4 Max Gunslinging Chain 1 | . . 1 Shots Hit Robots 100 | 16 65 19 Core Hits 59 | 5 45 9 Critical Kills . | . . . Critical Parts Destroyed . | . . . Critical Strikes 3 | 1 2 . Blast 2 | . 2 . Corrupt 1 | 1 . . Melee Attacks 5 | . 5 . Impact . | . . . Slashing . | . . . Piercing . | . . . Sneak Attacks 5 | . 5 . Combat Hostiles . | . . . Follow-up Attacks . | . . . Damage Inflicted 2463 | 246 1840 377 Guns 700 | 224 343 133 Cannons 365 | . 330 35 Explosions 1393 | 22 1167 204 Melee . | . . . Ramming 5 | . . 5 Kinetic 416 | . 381 35 Thermal 353 | 22 198 133 Explosive 1297 | . 1093 204 Electromagnetic 392 | 224 168 . Impact . | . . . Slashing . | . . . Piercing . | . . . Highest Corruption 3 | . 3 . Average Corruption 2 | . 2 . Corruption Purged . | . . . Corruption Blocked . | . . . Effects 33 | . 33 . Message Errors 8 | . 8 . Matter Fused 8 | . 8 . Heat Flow Errors 4 | . 4 . Energy Discharges 4 | . 4 . Data Loss (minor) 4 | . 4 . Data Loss (major) 1 | . 1 . Misfires 2 | . 2 . Alerts 2 | . 2 . Overload Shots . | . . . Overflow Damage 58 | 2 56 . Projectiles 12 | . 12 . Explosions 46 | 2 44 . Melee . | . . . Knockbacks 2 | . 2 . Impact . | . . . Kinetic 2 | . 2 . Secondary . | . . . Self-Inflicted Damage 43 | . 41 2 Shots 2 | . 2 . Rammed 1 | . . 1 Targets Rammed 1 | . . 1 Kicked . | . . . Crushed . | . . . Highest Temperature 234 | 108 234 20 Average Temperature 61 | 38 73 8 Received Heat Transfer 522 | . 192 330 Siege Activations . | . . . Robots Corrupted 1 | . 1 . Combat Hostiles 1 | . 1 . Parts Fried 4 | . 4 . Impact Corruptions . | . . . Robots Melted . | . . . Combat Hostiles . | . . . Parts Melted . | . . . Heat Transferred 964 | 50 359 555 Parts Sabotaged . | . . . Parts Stolen . | . . . Parts Stripped . | . . . Power Chain Reactions 2 | 1 1 . Alert | -11 -10 -9 ------- Run | Yrd Mat Mat Peak Influence 308 | 36 308 222 Initial 40 | . 23 40 Average 97 | 18 103 106 Maximum Alert Level 1 | . 1 1 Low Security (%) 87 | 100 87 75 Level 1 12 | . 12 25 Level 2 . | . . . Level 3 . | . . . Level 4 . | . . . Level 5 . | . . . High Security . | . . . Max Security . | . . . Squads Dispatched 7 | . 5 2 Investigation 3 | . 3 . Extermination . | . . . Reinforcement 4 | . 2 2 Assault . | . . . Garrison . | . . . Intercept . | . . . Searches Triggered . | . . . Construction Impeded 1 | . . 1 Haulers Reinforced . | . . . Active Scanning Responses . | . . . Cargo Convoy Interrupts . | . . . Stealth | -11 -10 -9 --------- Run | Yrd Mat Mat Distress Signals 4 | . 2 2 Communications Jammed . | . . . Distress Signals . | . . . Times Spotted 33 | 1 17 15 Peak Tracking Total 9 | 1 3 9 Tactical Retreats 1 | . . 1 Traps | -11 -10 -9 ------- Run | Yrd Mat Mat Traps Triggered 4 | . 4 . Indirectly . | . . . Trap Hack Attempts . | . . . Triggered . | . . . Disarmed . | . . . Reprogrammed . | . . . Reused . | . . . Traps Extracted . | . . . Installed . | . . . Triggered 1 | . 1 . Machines | -11 -10 -9 ---------- Run | Yrd Mat Mat Machines Disabled 1 | . 1 . Max in Single Turn 1 | . 1 . Machines Repaired . | . . . Machines Dismantled . | . . . Machines Sabotaged . | . . . Overloaded Fab Kills . | . . . Hacking | -11 -10 -9 --------- Run | Yrd Mat Mat Machines Accessed 7 | . 6 1 Terminals 4 | . 4 . Fabricators . | . . . Repair Stations 2 | . 1 1 Recycling Units 1 | . 1 . Scanalyzers . | . . . Garrison Access . | . . . Total Hacks 25 | . 23 2 Successful 16 | . 15 1 Failed 9 | . 8 1 Catastrophic 2 | . 2 . Database Lockouts . | . . . Manual . | . . . Terminals 15 | . 15 . Fabricators . | . . . Repair Stations 5 | . 3 2 Recycling Units 5 | . 5 . Scanalyzers . | . . . Garrison Access . | . . . Terminal Hacks 10 | . 10 . Record 6 | . 6 . Alert Level 2 | . 2 . Dispatch Records 1 | . 1 . Hauler Manifests 1 | . 1 . Fabricator Hacks . | . . . Repair Station Hacks 2 | . 1 1 Scan Component 1 | . 1 . Refit 1 | . . 1 Recycling Unit Hacks 4 | . 4 . Process 1 | . 1 . Report Inventory 2 | . 2 . Retrieve Components 1 | . 1 . Scanalyzer . | . . . Garrison Access Hacks . | . . . Unauthorized Hacks . | . . . Terminals . | . . . Fabricators . | . . . Repair Stations . | . . . Recycling Units . | . . . Scanalyzers . | . . . Garrison Access . | . . . Data Cores Recovered . | . . . Used . | . . . Hacking Detections 6 | . 6 . Full Trace Events 4 | . 4 . Feedback Events 1 | . 1 . Corruption 1 | . 1 . Feedback Blocked . | . . . Robot Schematics Acquired . | . . . Robots Built . | . . . Authchips . | . . . Time . | . . . Total Robot Build Rating . | . . . Part Schematics Acquired . | . . . Parts Built . | . . . Authchips . | . . . Time . | . . . Total Part Build Rating . | . . . Parts Repaired . | . . . Time . | . . . Parts Recycled . | . . . Recycled Matter 199 | . 199 . Retrieved Matter . | . . . Retrieved Components . | . . . Parts Scanalyzed . | . . . Part Schematics Acquired . | . . . Parts Damaged . | . . . Bothacking | -11 -10 -9 ------------ Run | Yrd Mat Mat Used RIF Installer . | . . . Robots Hacked 2 | . 2 . Non-combat 2 | . 2 . Combat . | . . . Robot Hacks Applied 3 | . 3 . parse_system 1 | . 1 . no_distress 1 | . 1 . check_alert 1 | . 1 . Relay Couplers Released . | . . . Fabnet Peak Effective % . | . . . Robots Rewired . | . . . Allies Hacked . | . . . Hacks Repelled . | . . . Allies | -11 -10 -9 -------- Run | Yrd Mat Mat Total Allies . | . . . Largest Group . | . . . Highest-Rated Group . | . . . Highest-Rated Ally . | . . . Total Orders . | . . . Ally Attacks . | . . . Total Damage . | . . . Kills . | . . . Allies Corrupted . | . . . Allies Melted . | . . . Intel | -11 -10 -9 ------- Run | Yrd Mat Mat Robot Analysis Total . | . . . Derelict Logs Recovered . | . . . Drone Launches . | . . . Drone Recoveries . | . . . Exploration | -11 -10 -9 ------------- Run | Yrd Mat Mat Turns Passed 2460 | 188 2000 272 Spaces Moved 1799 | 132 1426 241 Core 93 | 20 . 73 Treads . | . . . Legs . | . . . Wheels 328 | 112 165 51 Hover 1325 | . 1261 64 Flight 53 | . . 53 Fastest Speed 37 | 50 56 37 Average Speed 110 | 75 119 74 Slowest Speed 180 | 80 180 180 Overloaded Moves . | . . . Propulsion Burnouts . | . . . Robots Hopped 1 | . . 1 Cave-ins Triggered . | . . . Exploration Rate (%) 40 | 7 99 15 Regions Visited 2 Branch Regions . Pre-discovered Areas . | . . . Known Exits Taken 1 | . 1 . Unknown Exits Taken 1 | 1 . . Scrap Searched . | . . . Spaces Dug 4 | 4 . . Terrain Destroyed 177 | 8 136 33 Melee . | . . . Projectile 4 | 4 . . AOE 173 | 4 136 33 Terrain Rammed . | . . . Walls Destroyed . | . . . Machines Disabled . | . . . Actions | -11 -10 -9 --------- Run | Yrd Mat Mat Total 2090 | 181 1614 295 Wait 32 | . 15 17 Move 1795 | 131 1425 239 Hop 1 | . . 1 Pick Up 46 | 13 30 3 Fast Attach 3 | 1 2 . Attach 26 | 8 14 4 Detach 6 | . 6 . Swap 18 | 6 12 . Drop 40 | 5 28 7 Fire 117 | 17 77 23 Melee 5 | . 5 . Ram 1 | . . 1 Kick . | . . . Crush . | . . . Escape Stasis . | . . . Rewire . | . . . Trap . | . . . Miscellaneous . | . . . Route ------- -11/Scrapyard -10/Materials (discovered 6 exits: *Mat x3 / *Min x2 / [Sub]) -9/Materials History --------- Turn | Location | Event 2 | -11/Scrapyard | Met Revision 17 76 | -11/Scrapyard | Discovered new exit (range 8) 189 | -11/Scrapyard | Entered Materials 222 | -10/Materials | Discovered new exit (range 6) 307 | -10/Materials | Build established: Mutant 384 | -10/Materials | Discovered new exit (range 14) 710 | -10/Materials | Build established: Scavenger-Mutant 918 | -10/Materials | Discovered new exit (range 12) 1017 | -10/Materials | Identified exit to Mines 1191 | -10/Materials | Discovered new exit (range 16) 1207 | -10/Materials | Identified exit to Materials 1345 | -10/Materials | Discovered exit to Mines (range 7) 1357 | -10/Materials | Build established: Mutant 1447 | -10/Materials | Discovered exit to Materials (range 9) 2189 | -10/Materials | Entered another Materials area 2189 | -9/Materials | Evolved 2 slots: Power x1, Utility x1 2341 | -9/Materials | Core integrity fell below 50% 2414 | -9/Materials | Core integrity fell below 20% 2442 | -9/Materials | Lost 5 parts (2p1n2u) 2461 | -9/Materials | Destroyed by G-34 Mercenary with Small Laser Last Messages --------------- L-31 Rogue destroyed. Switching to secondary target: S-10 Pest. S-10 Pest destroyed. Backup Power I destroyed. S-10 Pest destroyed. Switching to secondary target: G-34 Mercenary. Backup Power I destroyed. S-10 Pest destroyed. Switching to secondary target: G-34 Mercenary. Backup Plating I destroyed. Acquired 12 matter. Acquired Flight Unit. Dropped Backup Propulsion I. Acquired Flight Unit. Processing Tank disabled. Flight Unit destroyed. G-34 Mercenary destroyed. Switching to secondary target: Y-45 Defender. Dropped Backup Laser I. [Achievement: First Step to Greatness] Map ----- +----------------------------------------------------+ | | | | | | | | | | | | | | | | | | | | | | | | | | | | | | | | | | | | | | | | | ?????????????????????????????????????????????????? | | ?????????????????????????????????????????????????? | | ???????????????????????##########????????????????? | | ???????????????????????# [ ##########???????? | | ???????????????????????# g""" # = #???????? | | ???????????????????????# @ """ # """ #???????? | | ???????????????????????# """ # *"R" #???????? | | ???????????????????????# # %%" " #???????? | | ???????????????????????# """Y #! [ #???????? | | ?????????????? #####???# """%g#%"" "" #???????? | | ?????????????? # #???# """= # """"" #???????? | | ?????????????# # #???# # """"" #???????? | | ?????????????# # #???#####+#### #???????? | | ?????????????# # ####### ###/############ #? | | ?????????????# # | | ?????????????# # T | | ?????????????# # ######## "" | | ?????????????# #######+### ##### ##??????????? | | ?????????????# #??# ## ######+###?????????? | | ?????????????# #### ## # #?????????? | | ?????????????# + "## # """ #?????????? | | ?????????????# # !! T## # """"" #?????????? | | ?????????????# # !! "## # """"" #?????????? | | ?????????????# + !! / + """"" #?????????? | | ?????????????# ############ # """ #?????????? | | ?????????????# #???# ?# # #?????????? | | ?????????????# #???# """ # # #?????????? | | ????????????##/##### """ # # #?????????? | | ????????????# ## """ + ##########?????????? | | ????????????# T ## # #??????????????????? | +----------------------------------------------------+ Best States ------------- Heat Dissipation 35 Energy Generation 13 Energy Capacity 250 Matter Stores 400 Matter Capacity 400 Sight Range 16 Terrain Scan Range 16 Terrain Scan Density 10 ECM Strength 1 Armor Coverage 160 Evasion (%) 62 Offensive Hacking 10 Authchip Count 1 Item Schematics ----------------- None Robot Schematics ------------------ None Fabricated ------------ Nothing Alien Tech Used ----------------- None Achievements -------------- First Step to Greatness Loot Pinata Maybe Next Time I'll Detach My Launcher One Hack Too Far Power Corrupts Shopping List Uninvited Guest Challenges ------------ None Game ------ Seed MatterPointMaul Manual? 0 Play Time 01:04:15 Cumulative 1.0 hours Start 2024.04.02 @ 18:29:15 End 2024.04.02 @ 19:48:23 Sessions 1 Manual Loads 0 Difficulty Rogue Special Mode None Game No. 1 Rogue 1 Adventurer 0 Explorer 0 Win Type - Total 0 Types 0/0/0/0/0/0/0/0/0 Lore% 0 Gallery% 3 Achievement% 2 Wizard Run 0 Options --------- Layout 1 ASCII 0 Keyboard 0 Movement Mouse Keybinds 0 Fullscreen 1 Font 32/SmallcapsGlow Map View 50x35 Zoom Use 0% Tactical HUD 0 Map Filters NONE Filters NONE Steam 0 RUN: 5ac856fe-207d-4fb2-ad6e-e93337ba6b5f